bitfinex/quotes_SOLUSD_20241121
["timestamp","ask_amount","ask_price","bid_price","bid_amount"]
[1732159049454,14.9591,233.97,233.86,29.40265913]
[1732159049624,14.9591,233.97,233.77,0.5]
[1732159049625,4.274,233.97,233.77,0.5]
[1732159049929,33.67665913,233.97,233.9,29.40265913]
[1732159050238,4.274,233.97,233.91,29.40265913]
[1732159050443,4.274,233.97,233.9,29.40265913]
[1732159050644,22.66777605,233.97,233.8,23.776884]
[1732159050938,18.39377605,233.95,233.88,18.39377605]
[1732159051244,4.274,233.97,233.81,20.0]
[1732159051245,4.274,233.97,233.9,18.39377605]
[1732159051432,6.5189,233.98,233.93,18.39377605]
[1732159051615,24.91267605,233.98,233.9,18.39377605]
[1732159051815,18.39377605,233.97,233.89,18.39377605]
[1732159052018,29.18667605,233.98,233.9,18.39377605]
[1732159052221,18.39377605,233.97,233.9,18.39377605]
[1732159052424,18.39377605,233.96,233.88,18.39377605]
[1732159052658,10.7929,233.98,233.76,18.89377605]
[1732159052659,18.39377605,233.91,233.84,18.39377605]
[1732159053532,15.6097,233.9,233.83,18.39377605]
[1732159053753,15.6097,233.9,233.85,18.39377605]
[1732159053947,15.6097,233.9,233.88,18.39377605]
[1732159054336,15.6097,233.96,233.89,18.39377605]
[1732159054659,15.6097,233.96,233.93,18.39377605]
[1732159054951,15.6097,233.96,233.92,18.39377605]
[1732159055155,19.8839,233.96,233.91,18.39377605]
[1732159055536,18.39377605,233.95,233.87,18.39377605]
[1732159055736,18.39377605,233.94,233.87,18.39377605]
[1732159056558,18.39377605,233.95,233.8,23.776884]
[1732159056730,22.66837605,233.94,233.87,18.39377605]
[1732159056934,18.39377605,233.93,233.86,18.39377605]
[1732159057155,22.66837605,233.94,233.87,18.39377605]
[1732159057350,22.66837605,233.94,233.76,18.39377605]
[1732159057351,4.2746,233.94,233.89,18.39377605]
[1732159057537,4.2746,233.94,233.87,18.39377605]
[1732159057740,22.66837605,233.94,233.87,18.39377605]
[1732159057966,22.66837605,233.94,233.76,18.39377605]
[1732159058170,18.39377605,233.9,233.83,18.39377605]
[1732159058469,18.39377605,233.88,233.8,18.39377605]
[1732159058642,34.00347605,233.86,233.79,18.39377605]
[1732159058845,34.00347605,233.86,233.7,15.7267]
[1732159058846,34.00347605,233.86,233.78,18.39377605]
[1732159059153,34.00347605,233.86,233.7,15.7267]
[1732159059154,15.6097,233.86,233.8,18.39377605]
[1732159059357,18.39377605,233.84,233.77,18.39377605]
[1732159059732,18.39377605,233.83,233.76,18.39377605]
[1732159059958,18.39377605,233.84,233.77,18.39377605]
[1732159060267,18.39377605,233.83,233.76,18.39377605]
[1732159060643,33.74253921,233.84,233.77,29.46613921]
[1732159060843,4.2764,233.84,233.77,29.46613921]
[1732159061347,4.2764,233.84,233.72,29.46613921]
[1732159061348,29.46613921,233.8,233.72,29.46613921]
[1732159061661,29.46613921,233.81,233.74,29.46613921]
[1732159061972,29.46613921,233.82,233.74,29.46613921]
[1732159062667,29.46613921,233.8,233.73,29.46613921]
[1732159062858,29.46613921,233.77,233.69,29.46613921]
[1732159063662,29.46613921,233.72,233.6,0.48066]
[1732159063965,29.46613921,233.72,233.65,29.46613921]
[1732159064548,22.0634,233.74,233.63,29.46613921]
[1732159064549,29.46613921,233.7,233.63,29.46613921]
[1732159064947,29.46613921,233.68,233.61,29.46613921]
[1732159065362,14.9745,233.73,233.6,0.48066]
[1732159065363,29.46613921,233.67,233.6,0.48066]
[1732159065601,29.46613921,233.67,233.6,29.94679921]
[1732159065738,29.46613921,233.68,233.61,29.46613921]
[1732159066071,29.46613921,233.62,233.6,0.48066]
[1732159066743,76.42513921,233.61,233.38,5.38198267]
[1732159067041,0.5,233.59,233.38,5.38198267]
[1732159067243,0.5,233.55,233.38,5.38198267]
[1732159067749,0.5,233.55,233.37,0.48066]
[1732159067750,20.0,233.53,233.37,0.48066]
[1732159067956,29.46613921,233.48,233.4,29.46613921]
[1732159068339,29.46613921,233.5,233.4,29.46613921]
[1732159068541,29.46613921,233.5,233.37,0.48066]
[1732159068542,29.46613921,233.52,233.44,29.46613921]
[1732159068747,4.2824,233.51,233.44,29.46613921]
[1732159068947,29.46613921,233.5,233.42,29.46613921]
[1732159069249,29.46613921,233.48,233.4,29.46613921]
[1732159070475,21.2721,233.47,233.37,0.48066]
[1732159070656,29.46613921,233.52,233.44,29.46613921]
[1732159070857,25.7812,233.53,233.44,29.46613921]
[1732159071056,21.4991,233.53,233.46,29.46613921]
[1732159071358,21.4991,233.53,233.48,29.46613921]
[1732159071869,33.74773921,233.56,233.48,29.46613921]
[1732159073171,29.46613921,233.56,233.48,29.46613921]
[1732159073359,33.74733921,233.58,233.5,29.46613921]
[1732159074077,29.46613921,233.56,233.48,29.46613921]
[1732159074961,33.74733921,233.58,233.5,29.46613921]
[1732159077488,16.337,233.59,233.54,29.46613921]
[1732159077981,16.337,233.59,233.52,29.46613921]
[1732159079565,29.46613921,233.54,233.46,29.46613921]
[1732159080672,20.618,233.59,233.48,29.46613921]
[1732159080673,4.2817,233.55,233.48,29.46613921]
[1732159080877,29.46613921,233.56,233.48,29.46613921]
[1732159081057,33.74753921,233.57,233.5,29.46613921]
[1732159082287,4.2814,233.57,233.46,29.46613921]
[1732159082484,4.2814,233.57,233.42,29.46613921]
[1732159082485,29.46613921,233.51,233.42,29.46613921]
[1732159083180,29.46613921,233.49,233.4,29.46613921]
[1732159084292,4.283,233.48,233.37,0.48066]
[1732159084594,4.283,233.48,233.4,29.46613921]
[1732159085861,29.46613921,233.45,233.37,29.94679921]
[1732159086277,29.46613921,233.43,233.37,0.48066]
[1732159086483,23.776884,233.44,233.37,0.48066]
[1732159086484,29.46613921,233.41,233.37,0.48066]
[1732159087484,4.2844,233.4,233.37,0.48066]
[1732159087691,33.75053921,233.4,233.37,0.48066]
[1732159087990,29.46613921,233.44,233.37,29.94679921]
[1732159088181,29.46613921,233.43,233.37,0.48066]
[1732159088689,33.74943921,233.46,233.38,29.46613921]
[1732159088866,20.3242,233.47,233.41,29.46613921]
[1732159089067,16.041,233.47,233.42,29.46613921]
[1732159089266,20.3243,233.47,233.4,29.46613921]
[1732159089488,20.3243,233.47,233.41,29.46613921]
[1732159089678,29.46613921,233.44,233.37,0.48066]
[1732159090194,20.3243,233.47,233.37,0.48066]
[1732159090195,29.46613921,233.42,233.37,0.48066]
[1732159090376,29.46613921,233.4,233.37,0.48066]
[1732159091498,4.2846,233.39,233.37,0.48066]
[1732159091669,29.46613921,233.4,233.37,0.48066]
[1732159091994,33.75063921,233.4,233.37,0.48066]
[1732159093292,26.749,233.47,233.37,0.48066]
[1732159093293,29.46613921,233.38,233.37,0.48066]
[1732159093900,15.333,233.37,233.26,29.46613921]
[1732159094075,29.46613921,233.33,233.26,29.46613921]
[1732159095092,15.333,233.37,233.28,29.46613921]
[1732159095093,4.2853,233.36,233.28,29.46613921]
[1732159095309,29.46613921,233.35,233.28,29.46613921]
[1732159095467,29.46613921,233.31,233.2,29.46613921]
[1732159095798,29.46613921,233.31,233.23,29.46613921]
[1732159096170,29.46613921,233.33,233.25,29.46613921]
[1732159097398,33.75203921,233.33,233.25,29.46613921]
[1732159097580,29.46613921,233.3,233.22,29.46613921]
[1732159098180,29.46613921,233.28,233.2,29.46613921]
[1732159098380,4.2859,233.33,233.14,15.85716]
[1732159098381,29.46613921,233.26,233.14,0.48066]
[1732159098598,29.46613921,233.26,233.18,29.46613921]
[1732159098794,29.46613921,233.28,233.21,29.46613921]
[1732159099375,29.46613921,233.28,233.19,29.46613921]
[1732159100376,33.75283921,233.28,233.19,29.46613921]
[1732159100576,29.46613921,233.28,233.21,29.46613921]
[1732159100777,29.46613921,233.3,233.21,29.46613921]
[1732159101200,29.46613921,233.28,233.21,29.46613921]
[1732159101704,29.46613921,233.31,233.23,29.46613921]
[1732159101913,33.75233921,233.31,233.23,29.46613921]
[1732159102297,29.46613921,233.33,233.25,29.46613921]
[1732159102593,33.75193921,233.33,233.27,29.46613921]
[1732159103088,15.333,233.37,233.27,29.46613921]
[1732159103089,4.2855,233.35,233.27,29.46613921]
[1732159103289,33.75163921,233.35,233.27,29.46613921]
[1732159104210,29.46613921,233.31,233.14,0.48066]
[1732159104498,4.2855,233.35,233.16,29.46613921]
[1732159104499,29.46613921,233.25,233.16,29.46613921]
[1732159105614,29.46613921,233.27,233.18,29.46613921]
[1732159106582,20.0,233.26,233.2,29.46613921]
[1732159106889,16.6314,233.3,233.22,29.46613921]
[1732159107090,16.6314,233.3,233.24,29.46613921]
[1732159107394,4.2859,233.32,233.24,29.46613921]
[1732159108587,24.2859,233.32,233.24,29.46613921]
[1732159109091,53.75203921,233.32,233.24,29.46613921]
[1732159109412,24.2859,233.32,233.25,29.46613921]
[1732159109793,20.0,233.32,233.25,29.46613921]
[1732159110813,24.286,233.32,233.25,29.46613921]
[1732159111685,24.286,233.32,233.21,29.46613921]
[1732159111984,29.46613921,233.3,233.23,29.46613921]
[1732159112184,29.46613921,233.3,233.22,29.46613921]
[1732159112381,49.46613921,233.29,233.21,29.46613921]
[1732159112584,20.0,233.27,233.2,29.46613921]
[1732159113014,29.46613921,233.23,233.15,29.46613921]
[1732159113208,20.0,233.22,233.15,29.46613921]
[1732159113403,20.0,233.22,233.16,29.46613921]
[1732159113709,20.0,233.23,233.17,29.46613921]
[1732159114211,53.75343921,233.25,233.17,29.46613921]
[1732159114423,29.46613921,233.24,233.17,29.46613921]
[1732159114612,20.0,233.23,233.16,29.46613921]
[1732159114816,49.46613921,233.23,233.16,29.46613921]
[1732159115119,49.46613921,233.23,233.14,29.94679921]
[1732159115120,29.46613921,233.22,233.14,29.94679921]
[1732159115921,20.0,233.19,233.14,0.48066]
[1732159116507,20.0,233.19,233.13,15.07550705]
[1732159117897,20.0,233.19,233.14,29.46613921]
[1732159118198,20.0,233.19,233.03,6.304]
[1732159118199,20.0,233.14,233.03,6.304]
[1732159118400,20.0,233.14,233.08,29.46613921]
[1732159118699,20.0,233.14,233.1,29.46613921]
[1732159118897,20.8998,233.26,233.13,29.46613921]
[1732159119119,29.46613921,233.23,233.16,29.46613921]
[1732159119510,20.8998,233.26,233.17,29.46613921]
[1732159119511,29.46613921,233.25,233.17,29.46613921]
[1732159120806,20.0,233.24,233.17,18.50811488]
[1732159121818,18.50811488,233.21,233.1,23.776884]
[1732159122025,18.50811488,233.21,233.13,18.50811488]
[1732159122229,20.0,233.22,233.15,18.50811488]
[1732159122610,20.0,233.22,233.16,18.50811488]
[1732159122916,20.0,233.25,233.18,18.50811488]
[1732159123632,38.50811488,233.25,233.17,18.50811488]
[1732159124111,20.0,233.23,233.16,18.50811488]
[1732159125325,20.0,233.23,233.17,18.50811488]
[1732159126712,20.0,233.23,233.18,18.50811488]
[1732159126916,20.0,233.24,233.18,18.50811488]
[1732159127211,16.6126,233.26,233.2,18.50811488]
[1732159127415,16.6126,233.26,233.21,18.50811488]
[1732159127611,18.50811488,233.3,233.23,18.50811488]
[1732159127830,16.2328,233.31,233.16,18.50811488]
[1732159127831,16.2328,233.31,233.27,18.50811488]
[1732159128535,16.2328,233.31,233.26,18.50811488]
[1732159128742,18.50811488,233.33,233.26,18.50811488]
[1732159128919,18.50811488,233.34,233.2,0.46934]
[1732159129123,16.2328,233.36,233.29,18.50811488]
[1732159129636,18.50811488,233.34,233.27,18.50811488]
[1732159130439,18.50811488,233.35,233.28,18.50811488]
[1732159130739,34.74091488,233.36,233.29,18.50811488]
[1732159131936,16.2328,233.36,233.3,18.50811488]
[1732159132336,16.2328,233.36,233.31,18.50811488]
[1732159132514,16.2328,233.36,233.33,18.50811488]
[1732159132715,22.7626,233.41,233.35,18.50811488]
[1732159133510,22.7626,233.41,233.36,18.50811488]
[1732159133716,22.7626,233.41,233.37,18.50811488]
[1732159133717,16.5236,233.41,233.37,18.50811488]
[1732159133942,16.5236,233.41,233.36,18.50811488]
[1732159134938,18.50811488,233.44,233.37,18.50811488]
[1732159136130,22.79181488,233.45,233.38,18.50811488]
[1732159136346,16.5236,233.46,233.41,18.50811488]
[1732159136522,16.5236,233.46,233.43,18.50811488]
[1732159136849,4.2829,233.49,233.32,1.14254941]
[1732159136850,35.03171488,233.51,233.44,18.50811488]
[1732159137148,16.5236,233.51,233.45,18.50811488]
[1732159137327,16.5236,233.51,233.35,15.9185]
[1732159137328,23.2182584,233.51,233.46,18.50811488]
[1732159137530,6.6946584,233.53,233.49,18.50811488]
[1732159137727,6.6946584,233.56,233.5,18.50811488]
[1732159137934,6.6946584,233.56,233.51,18.50811488]
[1732159138122,21.9504584,233.57,233.52,18.50811488]
[1732159138328,15.2558,233.57,233.52,18.50811488]
[1732159138522,15.2558,233.57,233.53,18.50811488]
[1732159139229,15.2558,233.57,233.43,1.11158959]
[1732159139444,15.2558,233.57,233.53,18.50811488]
[1732159140153,15.2558,233.57,233.51,18.50811488]
[1732159140459,18.50811488,233.52,233.45,18.50811488]
[1732159140622,29.54363813,233.52,233.45,29.54363813]
[1732159141247,29.54363813,233.53,233.46,29.54363813]
[1732159142555,4.2819,233.54,233.48,29.54363813]
[1732159142723,15.2558,233.57,233.51,29.54363813]
[1732159142929,15.2558,233.57,233.52,29.54363813]
[1732159143656,49.08083813,233.57,233.5,29.54363813]
[1732159143832,29.54363813,233.56,233.49,29.54363813]
[1732159144033,29.54363813,233.53,233.46,29.54363813]
[1732159145753,4.2819,233.54,233.48,29.54363813]
[1732159146148,33.82553813,233.54,233.47,29.54363813]
[1732159146336,29.54363813,233.48,233.42,29.54363813]
[1732159146537,29.54363813,233.47,233.39,29.54363813]
[1732159146734,29.54363813,233.45,233.37,29.54363813]
[1732159147542,29.54363813,233.48,233.4,29.54363813]
[1732159147752,29.54363813,233.49,233.41,29.54363813]
[1732159147953,29.54363813,233.49,233.42,29.54363813]
[1732159148444,4.2824,233.51,233.43,29.54363813]
[1732159148445,29.54363813,233.5,233.43,29.54363813]
[1732159148641,29.54363813,233.49,233.42,29.54363813]
[1732159148841,29.54363813,233.49,233.41,29.54363813]
[1732159149063,29.54363813,233.48,233.4,29.54363813]
[1732159149360,33.82673813,233.48,233.4,29.54363813]
[1732159149731,29.54363813,233.47,233.39,29.54363813]
[1732159150037,33.82673813,233.48,233.4,29.54363813]
[1732159151242,29.54363813,233.46,233.38,29.54363813]
[1732159151434,29.54363813,233.44,233.38,29.54363813]
[1732159151634,29.54363813,233.44,233.36,29.54363813]
[1732159152034,29.54363813,233.44,233.37,29.54363813]
[1732159152469,29.54363813,233.46,233.38,29.54363813]
[1732159152954,4.2835,233.45,233.38,29.54363813]
[1732159156338,33.82743813,233.44,233.38,29.54363813]
[1732159157746,33.82743813,233.44,233.36,29.54363813]
[1732159158359,29.54363813,233.41,233.33,29.54363813]
[1732159158544,29.54363813,233.38,233.31,29.54363813]
[1732159159151,29.54363813,233.4,233.31,29.54363813]
[1732159159540,33.82793813,233.41,233.33,29.54363813]
[1732159159759,4.2839,233.43,233.37,29.54363813]
[1732159159957,33.82733813,233.45,233.37,29.54363813]
[1732159161065,4.2839,233.43,233.37,29.54363813]
[1732159161798,29.54363813,233.42,233.35,29.54363813]
[1732159161974,29.54363813,233.4,233.33,29.54363813]
[1732159162744,18.48286454,233.41,233.33,18.48286454]
[1732159163256,22.76726454,233.41,233.33,18.48286454]
[1732159163739,18.48286454,233.43,233.35,18.48286454]
[1732159163941,15.2139,233.47,233.37,18.48286454]
[1732159163942,18.48286454,233.44,233.37,18.48286454]
[1732159164152,22.76616454,233.46,233.37,18.48286454]
[1732159164746,4.2833,233.46,233.4,18.48286454]
[1732159164951,4.2833,233.46,233.41,18.48286454]
[1732159165154,15.2139,233.47,233.43,18.48286454]
[1732159165375,19.4971,233.47,233.41,18.48286454]
[1732159166058,19.4971,233.47,233.4,18.48286454]
[1732159166561,19.4971,233.47,233.32,0.46934]
[1732159166562,19.4971,233.47,233.41,18.48286454]
[1732159168448,19.4971,233.47,233.43,18.48286454]
[1732159168449,15.2139,233.47,233.43,18.48286454]
[1732159168652,18.48286454,233.51,233.43,18.48286454]
[1732159168873,4.2827,233.5,233.43,18.48286454]
[1732159169069,4.2827,233.5,233.44,18.48286454]
[1732159169275,35.06646454,233.52,233.34,16.45134]
[1732159169276,20.8659,233.52,233.46,18.48286454]
[1732159169472,16.5836,233.52,233.47,3.62953527]
[1732159170385,16.5836,233.52,233.48,18.48286454]
[1732159170564,16.5836,233.52,233.49,18.48286454]
[1732159170758,18.48286454,233.56,233.49,18.48286454]
[1732159171073,37.99306454,233.57,233.5,18.48286454]
[1732159171382,19.5102,233.57,233.51,18.48286454]
[1732159171958,15.2288,233.57,233.52,18.48286454]
[1732159172167,8.52338824,233.65,233.64,0.46934]
[1732159172472,34.36846454,233.79,233.64,61.21195308]
[1732159172786,34.36846454,233.79,233.71,42.25974854]
[1732159173169,10.4612,233.83,233.71,42.25974854]
[1732159173386,6.1846,233.83,233.71,42.72908854]
[1732159173567,16.0163,233.85,233.71,42.25974854]
[1732159173772,4.2764,233.84,233.71,42.25974854]
[1732159174171,16.0163,233.85,233.71,42.25974854]
[1732159174695,6.3942,233.89,233.71,117.31077342]
[1732159174866,6.3942,233.89,233.71,116.66922623]
[1732159175391,35.84897958,233.89,233.71,116.16922623]
[1732159175697,4.2761,233.86,233.71,53.70100358]
[1732159176369,4.2776,233.78,233.62,0.46934]
[1732159176686,4.2776,233.78,233.67,29.45477958]
[1732159176687,29.45477958,233.74,233.67,29.45477958]
[1732159176859,29.45477958,233.73,233.66,29.45477958]
[1732159180376,33.73267958,233.76,233.68,29.45477958]
[1732159180701,33.73267958,233.76,233.6,0.64187111]
[1732159180702,19.8619,233.78,233.71,29.45477958]
[1732159180993,15.5844,233.78,233.71,29.45477958]
[1732159181291,33.73157958,233.82,233.71,53.23166358]
[1732159181465,29.45477958,233.84,233.71,53.23166358]
[1732159181997,16.2921,233.85,233.71,53.23166358]
[1732159182172,16.2921,233.85,233.71,73.73166358]
[1732159182369,40.12447958,233.89,233.71,103.827928]
[1732159182699,6.3942,233.89,233.71,103.28644316]
[1732159186481,6.3942,233.89,233.71,108.64929521]
[1732159187402,33.73047958,233.88,233.71,73.23166358]
[1732159187696,6.3942,233.89,233.71,103.82786306]
[1732159187870,6.3942,233.89,233.71,103.18644316]
[1732159188286,6.3942,233.89,233.71,110.05848185]
[1732159190003,16.2921,233.92,233.71,110.15848185]
[1732159190193,16.2921,233.92,233.91,29.45477958]
[1732159190805,0.48066,233.95,233.91,29.45477958]
[1732159191002,0.48066,233.95,233.94,29.45477958]
[1732159191511,0.48066,233.95,233.94,53.23166358]
[1732159194595,0.48066,233.95,233.94,73.23166358]
[1732159194796,0.48066,233.95,233.94,73.87255311]
[1732159195897,0.48066,233.95,233.94,74.37255311]
[1732159196101,0.48066,233.95,233.94,73.87255311]
[1732159196506,0.48066,233.95,233.94,74.37255311]
[1732159197219,0.48066,233.95,233.94,53.87255311]
[1732159197512,0.48066,233.95,233.94,29.45477958]
[1732159198833,0.48066,233.95,233.94,80.7446079]
[1732159200224,0.48066,233.95,233.94,73.23166358]
[1732159200403,0.48066,233.95,233.94,53.23166358]
[1732159201927,0.48066,233.95,233.94,73.23166358]
[1732159202123,0.48066,233.95,233.94,73.87254472]
[1732159204230,0.48066,233.95,233.94,53.23166358]
[1732159204428,0.48066,233.95,233.94,73.23166358]
[1732159206115,0.48066,233.95,233.94,73.87260914]
[1732159206814,15.0323,234.12,233.99,20.0]
[1732159207019,15.0323,234.12,234.09,29.45477958]
[1732159208333,15.0323,234.12,234.07,29.45477958]
[1732159209437,15.0323,234.12,234.09,29.45477958]
[1732159210610,29.45477958,234.11,234.03,29.45477958]
[1732159210809,48.75837958,234.12,234.04,29.45477958]
[1732159211035,15.0323,234.12,233.99,0.46934]
[1732159211239,15.0323,234.12,234.1,29.45477958]
[1732159211739,15.0323,234.12,234.09,29.45477958]
[1732159212028,15.0323,234.12,234.1,29.45477958]
[1732159212435,15.0323,234.12,234.11,29.45477958]
[1732159212618,20.0,234.17,234.11,29.45477958]
[1732159212812,20.0,234.17,234.13,29.45477958]
[1732159213419,20.0,234.17,234.11,29.45477958]
[1732159214922,16.5308,234.18,234.13,29.45477958]
[1732159215118,16.5308,234.18,234.17,29.45477958]
[1732159216438,16.5308,234.18,234.15,29.45477958]
[1732159217145,16.5308,234.18,234.14,29.45477958]
[1732159219540,16.5308,234.18,234.15,29.45477958]
[1732159219738,16.5308,234.18,234.17,29.45477958]
[1732159220523,16.5308,234.18,234.16,29.45477958]
[1732159220722,16.5308,234.18,234.16,18.35237889]
[1732159221542,16.5308,234.18,234.15,18.35237889]
[1732159221929,16.5308,234.18,234.14,18.35237889]
[1732159222126,16.5308,234.18,234.15,23.776884]
[1732159222322,16.5308,234.18,234.13,18.35237889]
[1732159222748,18.35237889,234.16,234.05,0.1]
[1732159223056,18.35237889,234.13,234.06,18.35237889]
[1732159223423,18.35237889,234.13,234.05,18.35237889]
[1732159223640,18.35237889,234.13,234.06,18.35237889]
[1732159224657,11.64762111,234.03,234.01,20.0]
[1732159224946,11.64762111,234.03,234.02,18.35237889]
[1732159225156,11.64762111,234.03,234.02,38.35237889]
[1732159225824,11.64762111,234.03,234.02,23.776884]
[1732159226045,11.64762111,234.03,234.02,18.35237889]
[1732159226248,11.64762111,234.03,233.98,18.35237889]
[1732159227150,11.64762111,234.03,233.96,18.35237889]
[1732159227151,30.0,234.03,233.96,18.35237889]
[1732159227354,11.64762111,234.03,233.97,18.35237889]
[1732159227530,11.64762111,234.03,233.98,18.35237889]
[1732159227730,11.64762111,234.03,234.01,18.35237889]
[1732159228639,11.64762111,234.03,234.01,29.3993175]
[1732159229543,11.64762111,234.03,233.93,23.776884]
[1732159229544,11.64762111,234.03,234.02,53.1762015]
[1732159230631,11.64762111,234.03,234.02,73.1762015]
[1732159232066,3.88895053,234.03,234.02,73.1762015]
[1732159232236,1.86695054,234.03,234.02,73.6762015]
[1732159232547,15.7491,234.18,234.04,0.96934]
[1732159232859,15.7491,234.18,234.13,29.3993175]
[1732159233159,15.7491,234.18,234.14,29.3993175]
[1732159233542,15.7491,234.18,234.13,29.3993175]
[1732159234875,15.7491,234.18,234.15,29.3993175]
[1732159235073,15.7491,234.18,234.14,29.3993175]
[1732159235942,15.7491,234.18,234.07,23.776884]
[1732159236154,15.7491,234.18,234.13,29.3993175]
[1732159236964,0.48066,234.19,234.15,29.3993175]
[1732159237139,0.48066,234.19,234.16,23.776884]
[1732159239169,29.8799775,234.19,234.12,29.3993175]
[1732159239350,29.3993175,234.15,234.08,29.3993175]
[1732159240465,29.3993175,234.15,234.09,23.776884]
[1732159241268,29.3993175,234.16,234.09,53.1762015]
[1732159241647,29.3993175,234.15,234.07,29.3993175]
[1732159241847,29.3993175,234.14,234.08,23.776884]
[1732159242150,29.3993175,234.14,234.07,23.776884]
[1732159242359,29.3993175,234.15,234.07,53.1762015]
[1732159242955,29.3993175,234.16,234.09,29.3993175]
[1732159243273,29.8799775,234.19,234.11,29.3993175]
[1732159243572,29.3993175,234.18,234.11,29.3993175]
[1732159243752,29.3993175,234.18,234.1,29.3993175]
[1732159244255,29.3993175,234.18,234.11,23.776884]
[1732159244966,29.3993175,234.17,234.11,23.776884]
[1732159245176,29.3993175,234.15,234.08,29.3993175]
[1732159246071,29.3993175,234.13,234.06,29.3993175]
[1732159246646,29.3993175,234.13,234.07,23.776884]
[1732159247377,29.3993175,234.11,234.03,29.3993175]
[1732159247589,29.3993175,234.1,234.03,29.3993175]
[1732159248080,45.1189175,234.11,234.03,29.3993175]
[1732159248253,45.1189175,234.11,234.04,29.3993175]
[1732159248861,29.3993175,234.1,234.03,29.3993175]
[1732159249067,15.7196,234.11,234.01,29.3993175]
[1732159249068,29.3993175,234.08,234.01,29.3993175]
[1732159249384,29.3993175,234.08,234.02,23.776884]
[1732159249970,29.3993175,234.08,234.0,29.3993175]
[1732159250182,33.6714175,234.08,234.0,29.3993175]
[1732159250478,29.3993175,234.05,233.97,29.3993175]
[1732159250676,18.37856466,234.07,233.99,18.37856466]
[1732159251181,18.37856466,234.06,233.99,18.37856466]
[1732159251354,18.37856466,234.02,233.95,18.37856466]
[1732159251561,18.37856466,234.01,233.93,18.37856466]
[1732159252068,18.37856466,234.0,233.92,18.37856466]
[1732159252788,29.42111764,234.0,233.92,29.42111764]
[1732159253479,29.42111764,233.97,233.89,29.42111764]
[1732159253681,29.42111764,233.97,233.86,9.91446398]
[1732159253682,29.42111764,233.97,233.9,29.42111764]
[1732159254071,29.42111764,233.98,233.9,29.42111764]
[1732159254272,15.3534,233.99,233.95,29.42111764]
[1732159255072,15.3534,233.99,233.92,29.42111764]
[1732159255073,44.77451764,233.99,233.92,29.42111764]
[1732159255579,29.42111764,233.97,233.9,53.19800164]
[1732159256274,29.42111764,233.94,233.87,29.42111764]
[1732159256474,29.42111764,233.88,233.79,29.42111764]
[1732159256673,29.42111764,233.91,233.78,5.57355343]
[1732159256859,22.9343,233.96,233.85,29.42111764]
[1732159257184,22.9343,233.96,233.75,1.06934]
[1732159257555,22.9343,233.96,233.8,0.5]
[1732159257770,22.9343,233.96,233.81,6.56860091]
[1732159257963,22.9343,233.96,233.82,0.64116502]
[1732159258180,22.9343,233.96,233.91,29.42111764]
[1732159258356,22.9343,233.96,233.83,6.09926091]
[1732159258357,22.9343,233.96,233.9,29.42111764]
[1732159258563,29.42111764,233.95,233.88,23.776884]
[1732159258762,29.42111764,233.94,233.88,23.776884]
[1732159258957,29.42111764,233.93,233.88,23.776884]
[1732159259160,29.42111764,233.89,233.79,29.42111764]
[1732159259363,29.42111764,233.85,233.78,29.42111764]
[1732159259770,29.42111764,233.86,233.79,29.42111764]
[1732159260266,29.42111764,233.87,233.79,29.42111764]
[1732159260472,29.42111764,233.87,233.81,23.776884]
[1732159260682,29.42111764,233.88,233.81,53.19800164]
[1732159260890,29.42111764,233.89,233.82,29.42111764]
[1732159261096,29.42111764,233.9,233.82,29.42111764]
[1732159261385,29.42111764,233.92,233.84,29.42111764]
[1732159261757,22.9343,233.96,233.9,29.42111764]
[1732159261958,52.35541764,233.96,233.89,29.42111764]
[1732159262182,52.35541764,233.96,233.88,29.42111764]
[1732159262364,22.9343,233.96,233.9,29.42111764]
[1732159262871,22.9343,233.96,233.91,29.42111764]
[1732159264056,22.9343,233.96,233.94,29.42111764]
[1732159264057,16.6331,233.96,233.94,29.42111764]
[1732159264263,45.26551764,234.01,233.94,29.42111764]
[1732159264992,15.8444,234.01,233.95,29.42111764]
[1732159265177,15.8444,234.01,233.94,29.42111764]
[1732159265584,20.1178,234.01,233.94,29.42111764]
[1732159266599,15.8444,234.01,233.95,29.42111764]
[1732159267770,15.8444,234.01,233.97,29.42111764]
[1732159267989,15.8444,234.01,233.98,29.42111764]
[1732159268171,49.37591764,234.07,233.99,29.42111764]
[1732159268491,15.6825,234.07,234.03,29.42111764]
[1732159268693,15.6825,234.07,233.93,0.46934]
[1732159268694,15.6825,234.07,234.04,29.42111764]
[1732159268990,35.45021764,234.13,234.06,29.42111764]
[1732159269200,6.0291,234.13,234.09,29.42111764]
[1732159269367,15.0039,234.14,234.1,29.42111764]